fUSD/lending_fUSD_20240327
["ID","MTS","AMOUNT","RATE_DAILY","PERIOD"]
[320783886,1711555859312,-500.0,0.00054246,120]
[320783887,1711555859324,-1204.25,0.00054246,120]
[320783888,1711555859334,-2113.78,0.00054246,120]
[320783889,1711555859344,-500.0,0.00054246,120]
[320783890,1711555859354,-3079.13,0.00054246,120]
[320783891,1711555859364,-509.78,0.00054246,120]
[320783892,1711555859375,-500.0,0.00054246,120]
[320783893,1711555859386,-500.0,0.00054246,120]
[320783894,1711555859396,-500.0,0.00054246,120]
[320783895,1711555859407,-15879.71,0.00054246,120]
[320783896,1711555859417,-770.92,0.00054246,120]
[320783897,1711555859427,-500.0,0.00054246,120]
[320783898,1711555859438,-500.0,0.00054246,120]
[320783899,1711555859449,-2345.3,0.00054246,120]
[320783900,1711555859460,-5347.94,0.00054246,120]
[320783901,1711555859477,-8071.86,0.00054246,120]
[320783902,1711555859488,-500.0,0.00054246,120]
[320783903,1711555859500,-500.0,0.00054246,120]
[320783904,1711555859513,-2855.54,0.00054246,120]
[320783905,1711555859525,-500.0,0.00054246,120]
[320783906,1711555859537,-500.0,0.00054246,120]
[320783907,1711555859549,-1888.04,0.00054246,120]
[320783908,1711555859559,-500.0,0.00054246,120]
[320783909,1711555859570,-1550.55,0.00054246,120]
[320783910,1711555859582,-2108.72,0.00054246,120]
[320783911,1711555859595,-989.07,0.00054246,120]
[320783912,1711555859611,-13927.0,0.00054246,120]
[320783913,1711555859623,-500.0,0.00054246,120]
[320783914,1711555859635,-1603.31,0.00054246,120]
[320783915,1711555859647,-151.0,0.00054246,30]
[320783916,1711555859660,-1762.3,0.00054246,120]
[320783917,1711555859672,-10720.57,0.00054246,120]
[320783918,1711555859683,-500.0,0.00054246,120]
[320783919,1711555859694,-500.76360097,0.00054246,120]
[320783920,1711555859705,-500.0,0.00054246,120]
[320783921,1711555859721,-506.05793455,0.00054246,120]
[320783922,1711555859733,-3734.86,0.00054246,120]
[320783923,1711555859743,-500.0,0.00054246,120]
[320783924,1711555859755,-12451.76,0.00054246,120]
[320783925,1711555859766,-196.0,0.00054246,60]
[320783926,1711555859777,-1116.58,0.00054246,120]
[320783927,1711555859788,-408.28089245,0.00054246,120]
[320783928,1711555859798,-3252.39,0.00054246,120]
[320783929,1711555859808,-4938.81,0.00054246,120]
[320783930,1711555859819,-506.24817561,0.00054246,120]
[320783931,1711555859829,-2206.47,0.00054246,120]
[320783932,1711555859840,-500.0,0.00054246,120]
[320783933,1711555859850,-2668.03,0.00054246,120]
[320783934,1711555859860,-196.0,0.00054246,60]
[320783935,1711555859870,-500.0,0.00054246,7]
[320783936,1711555859880,-500.0,0.00054246,120]
[320783937,1711555859890,-9849.31,0.00054246,120]
[320783938,1711555859899,-2001.18,0.00054246,120]
[320783939,1711555859909,-1391.876613,0.00054246,120]
[320783940,1711555859919,-4956.45,0.00054246,120]
[320783941,1711555859929,-500.0,0.00054246,120]
[320783942,1711555859939,-2986.85,0.00054246,120]
[320783943,1711555859949,-531.56,0.00054246,120]
[320783944,1711555859959,-3065.59,0.00054246,120]
[320783945,1711555859971,-500.0,0.00054246,120]
[320783946,1711555859982,-500.0,0.00054246,120]
[320783947,1711555859992,-500.0,0.00054246,120]
[320783948,1711555860003,-2197.12,0.00054246,120]
[320783949,1711555860013,-500.0,0.00054246,120]
[320783950,1711555860022,-1391.876613,0.00054246,120]
[320783951,1711555860032,-500.0,0.00054246,120]
[320783952,1711555860042,-963.05,0.00054246,120]
[320783953,1711555860053,-500.0,0.00054246,120]
[320783954,1711555860064,-500.0,0.00054246,120]
[320783955,1711555860074,-2275.29,0.00054246,120]
[320783956,1711555860085,-610.07,0.00054246,120]
[320783957,1711555860096,-500.0,0.00054246,65]
[320783958,1711555860108,-500.0,0.00054246,120]
[320783959,1711555860119,-500.0,0.00054246,120]
[320783960,1711555860130,-6100.22,0.00054246,120]
[320783961,1711555860141,-1765.05,0.00054246,120]
[320783962,1711555860155,-500.0,0.00054246,120]
[320783963,1711555860167,-3526.44,0.00054246,120]
[320783964,1711555860178,-876.17,0.00054246,120]
[320783965,1711555860189,-500.0,0.00054246,120]
[320783966,1711555860201,-3223.1,0.00054246,120]
[320783967,1711555860212,-500.0,0.00054246,120]
[320783968,1711555860225,-538.57,0.00054246,120]
[320783969,1711555860237,-151.0,0.00054246,120]
[320783970,1711555860248,-500.0,0.00054246,120]
[320783971,1711555860260,-37831.55,0.00054246,120]
[320783972,1711555860271,-1923.39,0.00054246,120]
[320783973,1711555860281,-2049.23,0.00054246,120]
[320783974,1711555860292,-3984.46,0.00054246,120]
[320783975,1711555860303,-908.28,0.00054246,120]
[320783976,1711555860313,-500.0,0.00054246,120]
[320783977,1711555860325,-1881.27,0.00054246,120]
[320783978,1711555860335,-1003.99,0.00054246,120]
[320783979,1711555860345,-560.17,0.00054246,120]
[320783980,1711555860355,-500.0,0.00054246,120]
[320783981,1711555860365,-1126.67,0.00054246,120]
[320783982,1711555860375,-982.68,0.00054246,120]
[320783983,1711555860385,-500.0,0.00054246,120]
[320783984,1711555860396,-3977.93,0.00054246,120]
[320783985,1711555860407,-4201.13,0.00054246,120]
[320783986,1711555860418,-1477.02,0.00054246,120]
[320783987,1711555860429,-759.9,0.00054246,120]
[320783988,1711555860439,-500.0,0.00054246,120]
[320783989,1711555860450,-500.0,0.00054246,120]
[320783990,1711555860460,-1752.93,0.00054246,120]
[320783991,1711555860472,-2264.79,0.00054246,120]
[320783992,1711555860481,-500.0,0.00054246,120]
[320783993,1711555860491,-500.0,0.00054246,120]
[320783994,1711555860501,-2000.0,0.00054246,120]
[320783995,1711555860511,-1691.32,0.00054246,120]
[320783996,1711555860521,-500.0,0.00054246,120]
[320783997,1711555860531,-980.57,0.00054246,120]
[320783998,1711555860540,-615.02,0.00054246,120]
[320783999,1711555860550,-4059.54,0.00054246,120]
[320784000,1711555860559,-667.42,0.00054246,120]
[320784001,1711555860569,-1684.5,0.00054246,120]
[320784002,1711555860579,-500.0,0.00054246,120]
[320784003,1711555860589,-500.64936501,0.00054246,120]
[320784004,1711555860599,-783.93,0.00054246,120]
[320784005,1711555860609,-1889.11,0.00054246,120]
[320784006,1711555860619,-1200.63,0.00054246,120]
[320784007,1711555860629,-500.0,0.00054246,120]
[320784008,1711555860639,-1686.38,0.00054246,120]
[320784009,1711555860649,-500.0,0.00054246,120]
[320784010,1711555860659,-500.0,0.00054246,120]
[320784011,1711555860669,-500.0,0.00054246,120]
[320784012,1711555860678,-2698.4,0.00054246,120]
[320784013,1711555860687,-776.98,0.00054246,120]
[320784014,1711555860696,-151.0,0.00054246,14]
[320784015,1711555860705,-401.803918,0.00054246,120]
[320784016,1711555860714,-500.0,0.00054246,120]
[320784017,1711555860726,-4442.43,0.00054246,120]
[320784018,1711555860735,-11859.21,0.00054246,21]
[320784019,1711555860745,-3457.11,0.00054246,120]
[320784020,1711555860754,-500.0,0.00054246,120]
[320784021,1711555860765,-500.0,0.00054246,120]
[320784022,1711555860774,-401.803918,0.00054246,120]
[320784023,1711555860785,-152.7276918,0.00054256,60]
[320784024,1711555860795,-155.97461956,0.0005426,60]
[320784025,1711555860805,-157.13009561,0.00054281,60]
[320784026,1711555860815,-150.67160229,0.00054281,60]
[320784027,1711555860825,-150.0,0.00054309,7]
[320784028,1711555860835,-161.997484,0.00054317,30]
[320784029,1711555860845,-154.5993147,0.00054319,60]
[320784030,1711555860856,-158.61463628,0.00054337,60]
[320784031,1711555860866,-150.0,0.000544,7]
[320784032,1711555860875,-150.0,0.00054415,7]
[320784033,1711555860885,-237.951906,0.0005442,14]
[320784034,1711555860895,-248.95168555,0.0005442,32]
[320784035,1711555860904,-788.68558184,0.0005442,14]
[320784036,1711555860914,-150.0,0.00054434,7]
[320784037,1711555860924,-1226.8115223,0.00054439,120]
[320784038,1711555860934,-200.0,0.00054446,30]
[320784039,1711555860944,-800.0,0.00054446,30]
[320784040,1711555860955,-500.0,0.00054446,30]
[320784041,1711555861238,-200.0,0.00054446,30]
[320784042,1711555861250,-737.1,0.00054466,120]
[320784043,1711555861261,-5000.0,0.0005448,120]
[320784044,1711555861270,-154.96706064,0.00054488,60]
[320784045,1711555861280,-556.0,0.00054493,120]
[320784046,1711555861290,-500.0,0.000545,120]
[320784047,1711555861299,-150.67160229,0.000545,60]
[320784048,1711555861309,-154.79291505,0.00054503,60]
[320784049,1711555861319,-1443.10776459,0.00054515,120]
[320784050,1711555861329,-1000.0,0.00054519,90]
[320784051,1711555861339,-500.0,0.0005452,120]
[320784052,1711555861349,-1046.10688111,0.0005452,2]
[320784053,1711555861360,-32767.37,0.0005452,120]
[320784054,1711555861369,-2000.0,0.0005452,15]
[320784055,1711555861379,-500.0,0.0005452,120]
[320784056,1711555861388,-500.0,0.0005452,120]
[320784057,1711555861397,-500.0,0.0005452,120]
[320784058,1711555861407,-500.0,0.0005452,120]
[320784059,1711555861417,-500.0,0.0005452,120]
[320784060,1711555861426,-158.05,0.0005452,120]
[320784061,1711555861436,-500.0,0.0005452,120]
[320784062,1711555861445,-512.09807033,0.0005452,120]
[320784063,1711555861454,-500.0,0.0005452,120]
[320784064,1711555861464,-500.0,0.0005452,120]
[320784065,1711555861477,-500.0,0.0005452,120]
[320784066,1711555861486,-185.88,0.0005452,120]
[320784067,1711555861495,-500.0,0.0005452,120]
[320784068,1711555861506,-500.0,0.0005452,120]
[320784069,1711555861516,-500.0,0.0005452,120]
[320784070,1711555861525,-500.0,0.0005452,120]
[320784071,1711555861534,-500.0,0.0005452,120]
[320784072,1711555861544,-500.0,0.0005452,120]
[320784073,1711555861553,-500.0,0.0005452,120]
[320784074,1711555861562,-520.93676191,0.0005452,120]
[320784075,1711555861571,-222.02,0.0005452,15]
[320784076,1711555861581,-500.0,0.0005452,120]
[320784077,1711555861590,-500.0,0.0005452,120]
[320784078,1711555861599,-500.0,0.0005452,120]
[320784079,1711555861609,-500.0,0.0005452,120]
[320784080,1711555861619,-500.0,0.0005452,120]
[320784081,1711555861628,-500.0,0.0005452,120]
[320784082,1711555861639,-500.0,0.0005452,120]
[320784083,1711555861648,-500.0,0.0005452,120]
[320784084,1711555861657,-165.31,0.0005452,120]
[320784085,1711555861666,-500.0,0.0005452,120]
[320784086,1711555861676,-515.00266613,0.0005452,120]
[320784087,1711555861685,-500.0,0.0005452,120]
[320784088,1711555861694,-500.0,0.0005452,120]
[320784089,1711555861704,-729.64,0.0005452,120]
[320784090,1711555861714,-244.96,0.0005452,120]
[320784091,1711555861727,-500.0,0.0005452,120]
[320784092,1711555861737,-500.0,0.0005452,120]
[320784093,1711555861746,-500.0,0.0005452,120]
[320784094,1711555861756,-163.11260268,0.0005452,120]
[320784095,1711555861766,-500.0,0.0005452,120]
[320784096,1711555861775,-500.0,0.0005452,120]
[320784097,1711555861785,-500.0,0.0005452,120]
[320784098,1711555861795,-1225.27,0.0005452,120]
[320784099,1711555861805,-1275.0,0.0005452,120]
[320784100,1711555861815,-1134.63,0.0005452,120]
[320784101,1711555861824,-500.0,0.0005452,120]
[320784102,1711555861834,-500.0,0.0005452,120]
[320784103,1711555861843,-500.0,0.0005452,120]
[320784104,1711555861853,-500.0,0.0005452,120]
[320784105,1711555861863,-500.0,0.0005452,120]
[320784106,1711555861873,-500.0,0.0005452,120]
[320784107,1711555861883,-500.0,0.0005452,120]
[320784108,1711555861893,-500.0,0.0005452,120]
[320784109,1711555861903,-500.0,0.0005452,120]
[320784110,1711555861913,-1457.47,0.0005452,120]
[320784111,1711555861922,-500.0,0.0005452,120]
[320784112,1711555861932,-638.36159785,0.0005452,120]
[320784113,1711555861941,-500.0,0.0005452,120]
[320784114,1711555861951,-500.0,0.0005452,120]
[320784115,1711555861961,-500.0,0.0005452,120]
[320784116,1711555861973,-500.0,0.0005452,120]
[320784117,1711555861983,-500.0,0.0005452,120]
[320784118,1711555861993,-500.0,0.0005452,120]
[320784119,1711555862002,-500.0,0.0005452,120]
[320784120,1711555862012,-201.62,0.0005452,120]
[320784121,1711555862022,-670.64,0.0005452,120]
[320784122,1711555862032,-726.47,0.0005452,120]
[320784123,1711555862042,-500.0,0.0005452,120]
[320784124,1711555862051,-500.0,0.0005452,120]
[320784125,1711555862061,-500.0,0.0005452,120]
[320784126,1711555862071,-500.0,0.0005452,120]
[320784127,1711555862080,-500.0,0.0005452,120]
[320784128,1711555862091,-500.0,0.0005452,120]
[320784129,1711555862102,-500.0,0.0005452,120]
[320784130,1711555862115,-515.51,0.0005452,120]
[320784131,1711555862125,-500.0,0.0005452,120]
[320784132,1711555862135,-813.63,0.0005452,120]
[320784133,1711555862146,-500.0,0.0005452,120]
[320784134,1711555862157,-151.0,0.0005452,30]
[320784135,1711555862167,-2237.32,0.0005452,120]
[320784136,1711555862177,-500.0,0.0005452,120]
[320784137,1711555862187,-1535.75,0.0005452,120]
[320784138,1711555862200,-1282.94,0.0005452,120]
[320784139,1711555862210,-500.0,0.0005452,120]
[320784140,1711555862223,-500.0,0.0005452,120]
[320784141,1711555862234,-1256.72,0.0005452,120]
[320784142,1711555862245,-618.27360815,0.0005452,120]
[320784143,1711555862255,-525.11,0.0005452,120]
[320784144,1711555862266,-500.0,0.0005452,120]
[320784145,1711555862275,-680.33,0.0005452,120]
[320784146,1711555862285,-500.0,0.0005452,120]
[320784147,1711555862295,-500.0,0.0005452,120]
[320784148,1711555862305,-656.15,0.0005452,120]
[320784149,1711555862320,-500.0,0.0005452,120]
[320784150,1711555862330,-411.26,0.0005452,120]
[320784151,1711555862340,-1752.52,0.0005452,120]
[320784152,1711555862350,-193.406,0.0005452,120]
[320784153,1711555862361,-742.87,0.0005452,120]
[320784154,1711555862371,-500.0,0.0005452,120]
[320784155,1711555862381,-500.0,0.0005452,120]
[320784156,1711555862390,-526.42,0.0005452,120]
[320784157,1711555862400,-500.0,0.0005452,120]
[320784158,1711555862410,-151.0,0.0005452,120]
[320784159,1711555862421,-500.0,0.0005452,120]
[320784160,1711555862431,-828.26,0.0005452,120]
[320784161,1711555862440,-500.0,0.0005452,120]
[320784162,1711555862450,-500.0,0.0005452,120]
[320784163,1711555862460,-500.0,0.0005452,120]
[320784164,1711555862471,-500.0,0.0005452,120]
[320784165,1711555862481,-500.0,0.0005452,120]
[320784166,1711555862491,-500.0,0.0005452,120]
[320784167,1711555862501,-500.0,0.0005452,120]
[320784168,1711555862511,-500.0,0.0005452,120]
[320784169,1711555862520,-672.95,0.0005452,120]
[320784170,1711555862530,-500.0,0.0005452,120]
[320784171,1711555862540,-500.0,0.0005452,120]
[320784172,1711555862549,-500.0,0.0005452,120]
[320784173,1711555862559,-500.0,0.0005452,120]
[320784174,1711555862568,-894.45,0.0005452,120]
[320784175,1711555862578,-500.0,0.0005452,120]
[320784176,1711555862587,-500.0,0.0005452,120]
[320784177,1711555862597,-500.0,0.0005452,120]
[320784178,1711555862607,-500.0,0.0005452,120]
[320784179,1711555862617,-1596.51,0.0005452,120]
[320784180,1711555862626,-500.0,0.0005452,120]
[320784181,1711555862636,-500.0,0.0005452,120]
[320784182,1711555862645,-1251.29,0.0005452,120]
[320784183,1711555862655,-500.0,0.0005452,120]
[320784184,1711555862665,-500.0,0.0005452,120]
[320784185,1711555862675,-918.77,0.0005452,120]
[320784186,1711555862684,-500.0,0.0005452,120]
[320784187,1711555862695,-500.0,0.0005452,120]
[320784188,1711555862704,-633.03,0.0005452,120]
[320784189,1711555862714,-500.0,0.0005452,120]
[320784190,1711555862728,-524.07,0.0005452,120]
[320784191,1711555862738,-752.1,0.0005452,120]
[320784192,1711555862747,-500.0,0.0005452,120]
[320784193,1711555862757,-500.0,0.0005452,60]
[320784194,1711555862766,-500.0,0.0005452,120]
[320784195,1711555862776,-500.0,0.0005452,120]
[320784196,1711555862785,-500.0,0.0005452,120]
[320784197,1711555862794,-500.0,0.0005452,120]
[320784198,1711555862804,-500.0,0.0005452,120]
[320784199,1711555862813,-813.84,0.0005452,120]
[320784200,1711555862823,-401.81,0.0005452,120]
[320784201,1711555862833,-500.0,0.0005452,120]
[320784202,1711555862843,-684.77,0.0005452,120]
[320784203,1711555862852,-500.0,0.0005452,120]
[320784204,1711555862862,-563.18,0.0005452,120]
[320784205,1711555862872,-500.0,0.0005452,120]
[320784206,1711555862881,-500.0,0.0005452,120]
[320784207,1711555862891,-500.0,0.0005452,120]
[320784208,1711555862901,-500.0,0.0005452,120]
[320784209,1711555862911,-593.15,0.0005452,120]
[320784210,1711555862921,-862.93,0.0005452,120]
[320784211,1711555862931,-500.0,0.0005452,120]
[320784212,1711555862941,-1457.69,0.0005452,120]
[320784213,1711555862950,-500.0,0.0005452,120]
[320784214,1711555862961,-605.69,0.0005452,120]
[320784215,1711555862974,-500.0,0.0005452,120]
[320784216,1711555862984,-478.62,0.0005452,120]
[320784217,1711555862994,-500.0,0.0005452,120]
[320784218,1711555863003,-500.0,0.0005452,120]
[320784219,1711555863013,-517.56,0.0005452,120]
[320784220,1711555863022,-1182.15,0.0005452,120]
[320784221,1711555863032,-500.0,0.0005452,120]
[320784222,1711555863042,-778.34,0.0005452,120]
[320784223,1711555863051,-500.0,0.0005452,120]
[320784224,1711555863061,-825.5,0.0005452,120]
[320784225,1711555863070,-500.0,0.0005452,120]
[320784226,1711555863080,-1267.49,0.0005452,120]
[320784227,1711555863089,-2648.21,0.0005452,120]
[320784228,1711555863098,-500.0,0.0005452,120]
[320784229,1711555863109,-500.0,0.0005452,120]
[320784230,1711555863122,-151.0,0.0005452,120]
[320784231,1711555863131,-500.0,0.0005452,120]
[320784232,1711555863141,-500.0,0.0005452,120]
[320784233,1711555863151,-500.0,0.0005452,120]
[320784234,1711555863161,-500.0,0.0005452,120]
[320784235,1711555863171,-500.0,0.0005452,120]
[320784236,1711555863182,-839.35,0.0005452,120]
[320784237,1711555863193,-500.0,0.0005452,120]
[320784238,1711555863202,-500.0,0.0005452,120]
[320784239,1711555863213,-500.0,0.0005452,120]
[320784240,1711555863226,-1135.8,0.0005452,120]
[320784241,1711555863235,-500.0,0.0005452,120]
[320784242,1711555863245,-500.0,0.0005452,120]
[320784243,1711555863254,-541.72,0.0005452,120]
[320784244,1711555863263,-550.01,0.0005452,120]
[320784245,1711555863273,-500.0,0.0005452,120]
[320784246,1711555863283,-500.0,0.0005452,120]
[320784247,1711555863293,-500.0,0.0005452,120]
[320784248,1711555863303,-151.0,0.0005452,120]
[320784249,1711555863312,-500.0,0.0005452,120]
[320784250,1711555863323,-500.0,0.0005452,120]
[320784251,1711555863333,-500.0,0.0005452,120]
[320784252,1711555863342,-1262.44,0.0005452,120]
[320784253,1711555863352,-500.0,0.0005452,120]
[320784254,1711555863361,-804.47,0.0005452,120]
[320784255,1711555863370,-500.0,0.0005452,120]
[320784256,1711555863380,-500.0,0.0005452,120]
[320784257,1711555863389,-151.0,0.0005452,120]
[320784258,1711555863399,-1315.49,0.0005452,120]
[320784259,1711555863408,-500.0,0.0005452,120]
[320784260,1711555863417,-804.61,0.0005452,120]
[320784261,1711555863427,-500.0,0.0005452,120]
[320784262,1711555863436,-680.65,0.0005452,120]
[320784263,1711555863445,-500.0,0.0005452,120]
[320784264,1711555863455,-151.0,0.0005452,120]
[320784265,1711555863465,-151.0,0.0005452,120]
[320784266,1711555863477,-500.0,0.0005452,120]
[320784267,1711555863488,-500.0,0.0005452,120]
[320784268,1711555863498,-500.0,0.0005452,120]
[320784269,1711555863507,-500.0,0.0005452,120]
[320784270,1711555863516,-151.0,0.0005452,120]
[320784271,1711555863527,-903.57,0.0005452,120]
[320784272,1711555863536,-500.0,0.0005452,120]
[320784273,1711555863545,-1352.94,0.0005452,120]
[320784274,1711555863555,-500.0,0.0005452,120]
[320784275,1711555863566,-500.0,0.0005452,120]
[320784276,1711555863575,-151.0,0.0005452,120]
[320784277,1711555863585,-500.0,0.0005452,120]
[320784278,1711555863658,-500.0,0.0005452,120]
[320784279,1711555863668,-500.0,0.0005452,120]
[320784280,1711555863678,-500.0,0.0005452,120]
[320784281,1711555863688,-635.82,0.0005452,120]
[320784282,1711555863698,-789.97,0.0005452,120]
[320784283,1711555863707,-624.13,0.0005452,120]
[320784284,1711555863716,-262.611744,0.0005452,120]
[320784285,1711555863727,-500.0,0.0005452,120]
[320784286,1711555863737,-500.0,0.0005452,120]
[320784287,1711555863746,-262.611744,0.0005452,120]
[320784288,1711555863756,-500.0,0.0005452,120]
[320784289,1711555863766,-500.0,0.0005452,120]
[320784290,1711555863776,-500.0,0.0005452,120]
[320784291,1711555863785,-500.0,0.0005452,120]
[320784292,1711555863794,-500.0,0.0005452,120]
[320784293,1711555863804,-500.0,0.0005452,120]
[320784294,1711555863814,-500.0,0.0005452,120]
[320784295,1711555863824,-500.0,0.0005452,120]
[320784296,1711555863833,-500.0,0.0005452,120]
[320784297,1711555863842,-532.76,0.0005452,120]
[320784298,1711555863851,-500.0,0.0005452,120]
[320784299,1711555863860,-500.0,0.0005452,120]
[320784300,1711555863869,-500.0,0.0005452,120]
[320784301,1711555863878,-500.0,0.0005452,120]
[320784302,1711555863888,-500.0,0.0005452,120]
[320784303,1711555863902,-500.0,0.0005452,120]
[320784304,1711555863911,-672.68,0.0005452,30]
[320784305,1711555863921,-616.69,0.0005452,120]
[320784306,1711555863930,-500.0,0.0005452,120]
[320784307,1711555863939,-500.0,0.0005452,120]
[320784308,1711555863949,-528.5,0.0005452,120]
[320784309,1711555863958,-500.0,0.0005452,120]
[320784310,1711555863967,-500.0,0.0005452,120]
[320784311,1711555863977,-500.0,0.0005452,120]
[320784312,1711555863986,-500.0,0.0005452,120]
[320784313,1711555863996,-500.0,0.0005452,120]
[320784314,1711555864005,-500.0,0.0005452,120]
[320784315,1711555864015,-500.0,0.0005452,120]
[320784316,1711555864024,-716.44,0.0005452,120]
[320784317,1711555864033,-527.07,0.0005452,120]
[320784318,1711555864042,-500.0,0.0005452,120]
[320784319,1711555864052,-500.0,0.0005452,120]
[320784320,1711555864061,-524.76,0.0005452,120]
[320784321,1711555864070,-500.0,0.0005452,120]
[320784322,1711555864080,-500.0,0.0005452,120]
[320784323,1711555864089,-500.0,0.0005452,120]
[320784324,1711555864098,-500.0,0.0005452,120]
[320784325,1711555864109,-500.0,0.0005452,120]
[320784326,1711555864117,-804.62,0.0005452,120]
[320784327,1711555864127,-1195.92,0.0005452,120]
[320784328,1711555864136,-500.0,0.0005452,120]
[320784329,1711555864146,-500.0,0.0005452,120]
[320784330,1711555864157,-632.15,0.0005452,120]
[320784331,1711555864166,-500.0,0.0005452,120]
[320784332,1711555864176,-532.3445415,0.0005452,120]
[320784333,1711555864185,-2000.0,0.0005452,15]
[320784334,1711555864195,-200.0,0.0005452,15]
[320784335,1711555864205,-500.0,0.0005452,120]
[320784336,1711555864214,-500.0,0.0005452,120]
[320784337,1711555864228,-500.0,0.0005452,120]
[320784338,1711555864237,-634.49,0.0005452,120]
[320784339,1711555864246,-1171.88,0.0005452,120]
[320784340,1711555864256,-34816.52,0.0005452,120]
[320784341,1711555864265,-500.0,0.0005452,120]
[320784342,1711555864275,-654.53,0.0005452,120]
[320784343,1711555864284,-1203.84,0.0005452,120]
[320784344,1711555864293,-500.0,0.0005452,120]
[320784345,1711555864302,-500.0,0.0005452,120]
[320784346,1711555864312,-500.0,0.0005452,120]
[320784347,1711555864326,-500.0,0.0005452,120]
[320784348,1711555864335,-500.0,0.0005452,120]
[320784349,1711555864344,-500.0,0.0005452,120]
[320784350,1711555864354,-691.32,0.0005452,120]
[320784351,1711555864363,-500.0,0.0005452,120]
[320784352,1711555864372,-500.0,0.0005452,120]
[320784353,1711555864382,-829.77,0.0005452,120]
[320784354,1711555864391,-5690.61,0.0005452,120]
[320784355,1711555864400,-500.0,0.0005452,120]
[320784356,1711555864409,-612.26,0.0005452,120]
[320784357,1711555864418,-500.0,0.0005452,120]
[320784358,1711555864427,-524.6,0.0005452,120]
[320784359,1711555864436,-500.0,0.0005452,120]
[320784360,1711555864445,-500.0,0.0005452,120]
[320784361,1711555864458,-500.0,0.0005452,120]
[320784362,1711555864467,-1078.44,0.0005452,120]
[320784363,1711555864478,-500.0,0.0005452,120]
[320784364,1711555864487,-1263.56,0.0005452,120]
[320784365,1711555864496,-558.73,0.0005452,120]
[320784366,1711555864505,-500.0,0.0005452,120]
[320784367,1711555864514,-500.0,0.0005452,120]
[320784368,1711555864524,-184.888124,0.0005452,120]
[320784369,1711555864533,-500.0,0.0005452,120]
[320784370,1711555864542,-500.0,0.0005452,120]
[320784371,1711555864552,-361.92733814,0.0005452,120]
[320784372,1711555864561,-184.888124,0.0005452,120]
[320784373,1711555864570,-514.15,0.0005452,120]
[320784374,1711555864579,-500.0,0.0005452,120]
[320784375,1711555864588,-478.09081214,0.0005452,120]
[320784376,1711555864598,-518.04,0.0005452,120]
[320784377,1711555864608,-500.0,0.0005452,120]
[320784378,1711555864618,-500.0,0.0005452,120]
[320784379,1711555864628,-500.0,0.0005452,120]
[320784380,1711555864637,-1339.03,0.0005452,120]
[320784381,1711555864646,-500.0,0.0005452,120]
[320784382,1711555864655,-2819.83,0.0005452,120]
[320784383,1711555864664,-377.35,0.0005452,120]
[320784384,1711555864673,-1392.63,0.0005452,120]
[320784385,1711555864683,-4237.53,0.0005452,120]